fUSD/lending_fUSD_20260127
["ID","MTS","AMOUNT","RATE_DAILY","PERIOD"]
[403723418,1769508685569,-250.0,0.00041,45]
[403723419,1769508685578,-250.0,0.00041,45]
[403723420,1769508685588,-167.59045865,0.00041,120]
[403723421,1769508685599,-250.0,0.00041,45]
[403723422,1769508685609,-200.0,0.00041,120]
[403723423,1769508685618,-603.97374895,0.00041,30]
[403723424,1769508685627,-1000.0,0.00041,30]
[403723425,1769508685636,-1000.0,0.00041,60]
[403723426,1769508685646,-1000.0,0.00041,120]
[403723427,1769508685655,-619.0,0.00041,120]
[403723428,1769508685664,-500.0,0.00041,120]
[403723429,1769508685673,-1226.0,0.00041,75]
[403723430,1769508685682,-250.0,0.00041,45]
[403723431,1769508685691,-250.0,0.00041,45]
[403723432,1769508685701,-250.0,0.00041,45]
[403723433,1769508685711,-250.0,0.00041,45]
[403723434,1769508685722,-309.0,0.00041,30]
[403723435,1769508685732,-988.6,0.00041,30]
[403723436,1769508685742,-7529.95825798,0.00041,28]
[403723437,1769508685751,-150.0,0.00041,120]
[403723438,1769508685760,-253.0,0.00041,34]
[403723439,1769508685770,-162.0,0.00041,90]
[403723440,1769508685781,-1055.00763071,0.00041,30]
[403723441,1769508685792,-1361.2,0.00041041,120]
[403723442,1769508685802,-800.0,0.00041044,14]
[403723443,1769508685811,-500.0,0.00041044,14]
[403723444,1769508685821,-118509.5358282,0.00041059,2]
[403723445,1769508685830,-300.0,0.00041068,22]
[403723446,1769508685840,-157.36498,0.00041088,30]
[403723447,1769508685849,-157.67,0.00041092,120]
[403723448,1769508685858,-329.21496259,0.00041095,120]
[403723449,1769508685868,-500.0,0.00041095,120]
[403723450,1769508685878,-500.0,0.00041095,120]
[403723451,1769508685888,-512.0,0.00041095,120]
[403723452,1769508685897,-151.77346238,0.00041095,120]
[403723453,1769508685909,-1000.0,0.00041096,14]
[403723454,1769508685918,-500.0,0.00041096,60]
[403723455,1769508685928,-500.0,0.00041096,60]
[403723456,1769508685938,-500.0,0.00041096,60]
[403723457,1769508685947,-500.0,0.00041096,60]
[403723458,1769508685957,-543.0,0.00041096,60]
[403723459,1769508685967,-566.08,0.00041096,120]
[403723460,1769508685976,-256.1,0.00041096,120]
[403723461,1769508685985,-1000.0,0.00041096,60]
[403723462,1769508685995,-1000.0,0.00041096,60]
[403723463,1769508686004,-1000.0,0.00041096,60]
[403723464,1769508686013,-1000.0,0.00041096,60]
[403723465,1769508686022,-1000.0,0.00041096,60]
[403723466,1769508686032,-1000.0,0.00041096,60]
[403723467,1769508686041,-1000.0,0.00041096,60]
[403723468,1769508686052,-1000.0,0.00041096,60]
[403723469,1769508686062,-1000.0,0.00041096,60]
[403723470,1769508686072,-1000.0,0.00041096,60]
[403723471,1769508686082,-1000.0,0.00041096,60]
[403723472,1769508686092,-1000.0,0.00041096,60]
[403723473,1769508686101,-1000.0,0.00041096,60]
[403723474,1769508686111,-1000.0,0.00041096,60]
[403723475,1769508686120,-1000.0,0.00041096,60]
[403723476,1769508686129,-1000.0,0.00041096,60]
[403723477,1769508686138,-1000.0,0.00041096,60]
[403723478,1769508686147,-262.0,0.00041096,120]
[403723479,1769508686156,-1000.0,0.00041096,60]
[403723480,1769508686165,-1000.0,0.00041096,60]
[403723481,1769508686174,-1000.0,0.00041096,60]
[403723482,1769508686188,-1124.0,0.00041096,60]
[403723483,1769508686198,-192.370948,0.00041096,120]
[403723484,1769508686207,-192.370948,0.00041096,120]
[403723485,1769508686216,-192.370948,0.00041096,120]
[403723486,1769508686226,-192.370948,0.00041096,120]
[403723487,1769508686235,-192.370948,0.00041096,120]
[403723488,1769508686244,-192.370948,0.00041096,120]
[403723489,1769508686253,-192.370948,0.00041096,120]
[403723490,1769508686264,-192.370948,0.00041096,120]
[403723491,1769508686274,-192.370948,0.00041096,120]
[403723492,1769508686283,-192.370948,0.00041096,120]
[403723493,1769508686293,-192.370948,0.00041096,120]
[403723494,1769508686302,-192.370948,0.00041096,120]
[403723495,1769508686311,-192.370948,0.00041096,120]
[403723496,1769508686322,-192.370948,0.00041096,120]
[403723497,1769508686331,-192.370948,0.00041096,120]
[403723498,1769508686340,-192.370948,0.00041096,120]
[403723499,1769508686349,-192.370948,0.00041096,120]
[403723500,1769508686358,-192.370948,0.00041096,120]
[403723501,1769508686367,-192.370948,0.00041096,120]
[403723502,1769508686376,-192.370951,0.00041096,120]
[403723503,1769508686386,-1000.0,0.00041096,60]
[403723504,1769508686396,-1000.0,0.00041096,60]
[403723505,1769508686407,-1000.0,0.00041096,60]
[403723506,1769508686416,-1000.0,0.00041096,60]
[403723507,1769508686426,-1000.0,0.00041096,60]
[403723508,1769508686435,-1000.0,0.00041096,60]
[403723509,1769508686445,-1000.0,0.00041096,60]
[403723510,1769508686460,-1000.0,0.00041096,60]
[403723511,1769508686471,-1000.0,0.00041096,60]
[403723512,1769508686482,-1000.0,0.00041096,60]
[403723513,1769508686493,-1000.0,0.00041096,60]
[403723514,1769508686503,-1027.0,0.00041096,60]
[403723515,1769508686512,-151.0,0.00041096,120]
[403723516,1769508686522,-151.0,0.00041096,120]
[403723517,1769508686531,-151.0,0.00041096,120]
[403723518,1769508686541,-151.0,0.00041096,120]
[403723519,1769508686550,-151.0,0.00041096,120]
[403723520,1769508686560,-151.0,0.00041096,120]
[403723521,1769508686569,-151.0,0.00041096,120]
[403723522,1769508686579,-151.0,0.00041096,120]
[403723523,1769508686588,-151.0,0.00041096,120]
[403723524,1769508686598,-151.0,0.00041096,120]
[403723525,1769508686607,-151.0,0.00041096,120]
[403723526,1769508686618,-151.0,0.00041096,120]
[403723527,1769508686628,-151.0,0.00041096,120]
[403723528,1769508686637,-151.0,0.00041096,120]
[403723529,1769508686646,-151.0,0.00041096,120]
[403723530,1769508686659,-265.802274,0.00041096,120]
[403723531,1769508686669,-151.0,0.000411,120]
[403723532,1769508686679,-217.59,0.000411,120]
[403723533,1769508686689,-169.23799586,0.000411,120]
[403723534,1769508686698,-169.23799586,0.000411,120]
[403723535,1769508686708,-165.94104903,0.000411,120]
[403723536,1769508686718,-165.94104903,0.000411,120]
[403723537,1769508686728,-157.27442072,0.000411,120]
[403723538,1769508686737,-157.27442072,0.000411,120]
[403723539,1769508686747,-650.0,0.00041123,120]
[403723540,1769508686757,-503.0,0.00041157,23]
[403723541,1769508686766,-157.67,0.00041192,120]
[403723542,1769508686776,-179.98668403,0.000412,30]
[403723543,1769508686785,-2204.62917511,0.0004123,5]
[403723544,1769508686795,-500.0,0.00041232,120]
[403723545,1769508686804,-250.0,0.00041232,120]
[403723546,1769508686814,-157.36498,0.00041288,30]
[403723547,1769508686823,-906.07168058,0.00041291,120]
[403723548,1769508686833,-157.7359225,0.00041292,120]
[403723549,1769508686846,-153.0,0.000413,120]
[403723550,1769508686856,-500.0,0.00041369,120]
[403723551,1769508686865,-1000.0,0.0004137,30]
[403723552,1769508686875,-215.53950439,0.00041397,120]
[403723553,1769508686885,-250.0,0.000414,45]
[403723554,1769508686895,-250.0,0.000414,45]
[403723555,1769508686905,-801.53308525,0.000414,30]
[403723556,1769508686914,-157.36498,0.00041488,30]
[403723557,1769508686925,-250.0,0.000415,45]
[403723558,1769508686934,-250.0,0.000415,45]
[403723559,1769508686944,-250.0,0.000415,45]
[403723560,1769508686954,-250.0,0.000415,45]
[403723561,1769508686964,-250.0,0.000415,45]
[403723562,1769508686973,-250.0,0.000415,45]
[403723563,1769508686983,-250.0,0.000415,45]
[403723564,1769508686992,-250.0,0.000415,45]
[403723565,1769508687002,-250.0,0.000415,45]
[403723566,1769508687011,-250.0,0.000415,45]
[403723567,1769508687021,-250.0,0.000415,45]
[403723568,1769508687031,-250.0,0.000415,45]
[403723569,1769508687044,-250.0,0.000415,45]
[403723570,1769508687054,-250.0,0.000415,45]
[403723571,1769508687063,-250.0,0.000415,45]
[403723572,1769508687072,-250.0,0.000415,45]
[403723573,1769508687082,-1000.0,0.000415,30]
[403723574,1769508687091,-500.0,0.00041506,120]
[403723575,1769508687101,-1333.0,0.00041638,2]
[403723576,1769508687111,-499.99,0.00041643,120]
[403723577,1769508687121,-1000.0,0.00041644,30]
[403723578,1769508687130,-1000.0,0.00041671,120]
[403723579,1769508687139,-1000.0,0.00041671,120]
[403723580,1769508687148,-157.36498,0.00041688,30]
[403723581,1769508687158,-151.0,0.000417,120]
[403723582,1769508687167,-2442.0,0.00041724,2]
[403723583,1769508687177,-541.04541447,0.000418,120]
[403723584,1769508687193,-1000.0,0.00041864,2]
[403723585,1769508687202,-800.0,0.00041866,60]
[403723586,1769508687212,-500.0,0.00041866,60]
[403723587,1769508687221,-157.36498,0.00041888,30]
[403723588,1769508687230,-319428.03757527,0.000419,14]
[403723589,1769508687239,-153.0,0.000419,120]
[403723590,1769508687252,-491.0,0.000419,120]
[403723591,1769508687263,-250.0,0.000419,45]
[403723592,1769508687272,-2000.0,0.000419,2]
[403723593,1769508687283,-503.0,0.00041904,24]
[403723594,1769508687292,-1000.0,0.00041918,30]
[403723595,1769508687302,-150.0,0.00041918,120]
[403723596,1769508687312,-169.44904283,0.00041976,74]
[403723597,1769508687321,-312.34170934,0.00041999,120]
[403723598,1769508687332,-481.52103402,0.00042,2]
[403723599,1769508687341,-206.82255288,0.00042,120]
[403723600,1769508687351,-864.90013271,0.00042,120]
[403723601,1769508687360,-330.18251106,0.00042,120]
[403723602,1769508687371,-261.8186789,0.00042,30]
[403723603,1769508687380,-159.51679494,0.00042,120]
[403723604,1769508687522,-500.0,0.00042,120]
[403723605,1769508687532,-500.0,0.00042,120]
[403723606,1769508687541,-500.0,0.00042,120]
[403723607,1769508687552,-500.0,0.00042,120]
[403723608,1769508687562,-500.0,0.00042,120]
[403723609,1769508687571,-758.0,0.00042,120]
[403723610,1769508687581,-500.0,0.00042,120]
[403723611,1769508687601,-500.0,0.00042,120]
[403723612,1769508687611,-200.0,0.00042,120]
[403723613,1769508687622,-520.0,0.00042,120]
[403723614,1769508687631,-500.0,0.00042,120]
[403723615,1769508687641,-1000.0,0.00042,30]
[403723616,1769508687651,-1000.0,0.00042,120]
[403723617,1769508687661,-1000.0,0.00042,120]
[403723618,1769508687671,-1000.0,0.00042,120]
[403723619,1769508687681,-1000.0,0.00042,120]
[403723620,1769508687691,-1000.0,0.00042,120]
[403723621,1769508687701,-1000.0,0.00042,120]
[403723622,1769508687711,-297.8710157,0.00042,120]
[403723623,1769508687721,-300.0,0.00042,120]
[403723624,1769508687736,-500.0,0.00042,45]
[403723625,1769508687745,-225.0,0.00042,120]
[403723626,1769508687755,-309.0,0.00042,30]
[403723627,1769508687765,-338.79,0.00042,30]
[403723628,1769508687774,-1546.97,0.00042,14]
[403723629,1769508687784,-2018.57,0.00042,30]
[403723630,1769508687794,-150.0,0.00042,120]
[403723631,1769508687803,-253.0,0.00042,37]
[403723632,1769508687813,-500.0,0.00042,120]
[403723633,1769508687824,-1360.4117702,0.0004201,2]
[403723634,1769508687834,-582.0,0.000421,3]
[403723635,1769508687844,-257.38859031,0.00042121,120]
[403723636,1769508687854,-1000.0,0.00042192,30]
[403723637,1769508687864,-5616.99314038,0.000422,2]
[403723638,1769508687873,-151.0,0.000422,120]
[403723639,1769508687883,-424.14495403,0.00042219,120]
[403723640,1769508687892,-117719.93550348,0.0004222,4]
[403723641,1769508687902,-150.0,0.00042222,120]
[403723642,1769508687911,-150.0,0.00042231,120]
[403723643,1769508687921,-150.0,0.00042316,120]
[403723644,1769508687931,-300.270435,0.00042336,111]
[403723645,1769508687942,-200.0,0.00042399,120]
[403723646,1769508687951,-169.39,0.000424,30]
[403723647,1769508687960,-250.0,0.000424,45]
[403723648,1769508687969,-500.0,0.00042414,60]
[403723649,1769508687979,-600.0,0.00042414,60]
[403723650,1769508687988,-375.44480454,0.00042438,120]
[403723651,1769508687997,-500.0,0.00042438,120]
[403723652,1769508688007,-1000.0,0.00042466,30]
[403723653,1769508688016,-500.0,0.00042466,120]
[403723654,1769508688026,-738146.56659923,0.000425,10]
[403723655,1769508688035,-5600.0,0.000425,29]
[403723656,1769508688045,-250.0,0.000425,120]
[403723657,1769508688055,-270.9,0.000425,120]
[403723658,1769508688065,-183.27204529,0.000425,120]
[403723659,1769508688075,-500.0,0.000425,120]
[403723660,1769508688084,-2429.33584281,0.000425,14]
[403723661,1769508688093,-691.20927408,0.000425,120]
[403723662,1769508688104,-500.0,0.00042521,120]
[403723663,1769508688114,-500.0,0.00042575,120]
[403723664,1769508688123,-500.0,0.00042576,120]
[403723665,1769508688132,-153.0,0.000426,120]
[403723666,1769508688142,-976.82,0.000426,120]
[403723667,1769508688157,-945.15,0.000426,120]
[403723668,1769508688166,-2112.1,0.000426,120]
[403723669,1769508688177,-300.0,0.0004263,90]
[403723670,1769508688190,-300.0,0.0004263,90]
[403723671,1769508688199,-500.0,0.0004263,120]
[403723672,1769508688209,-1864.42140778,0.00042633,120]
[403723673,1769508688219,-503.0,0.00042651,25]
[403723674,1769508688231,-500.0,0.00042685,120]
[403723675,1769508688242,-1457.67681159,0.000427,30]
[403723676,1769508688254,-251.42638468,0.000427,120]
[403723677,1769508688264,-100000.0,0.000427,120]
[403723678,1769508688275,-372.85105945,0.000427,30]
[403723679,1769508688285,-500.0,0.00042712,120]
[403723680,1769508688295,-1000.0,0.0004274,30]
[403723681,1769508688306,-286.25683995,0.0004274,120]
[403723682,1769508688316,-154.25,0.0004274,91]
[403723683,1769508688325,-500.0,0.0004274,120]
[403723684,1769508688335,-3176.68579881,0.00042747,120]
[403723685,1769508688344,-791.0,0.0004275,120]
[403723686,1769508688354,-1245.76239728,0.0004277,120]
[403723687,1769508688364,-500.0,0.00042795,120]
[403723688,1769508688374,-151.0,0.000428,120]
[403723689,1769508688384,-227.71811726,0.000428,30]
[403723690,1769508688394,-268.51,0.000428,120]
[403723691,1769508688404,-3255.3940052,0.000428,120]
[403723692,1769508688413,-500.0,0.00042849,120]
[403723693,1769508688422,-500.0,0.0004285,120]
[403723694,1769508688431,-1000.0,0.00042864,2]
[403723695,1769508688441,-2037.59494559,0.0004289,120]
[403723696,1769508688450,-200.0,0.000429,120]
[403723697,1769508688459,-200.0,0.000429,120]
[403723698,1769508688468,-200.0,0.000429,120]
[403723699,1769508688478,-200.0,0.000429,120]
[403723700,1769508688487,-200.0,0.000429,120]
[403723701,1769508688496,-200.0,0.000429,120]
[403723702,1769508688506,-200.0,0.000429,120]
[403723703,1769508688515,-200.0,0.000429,120]
[403723704,1769508688524,-580.0,0.000429,120]
[403723705,1769508688534,-300.0,0.00042904,90]
[403723706,1769508688544,-500.0,0.00042904,120]
[403723707,1769508688554,-548.3423286,0.00042933,30]
[403723708,1769508688563,-834.80436025,0.0004295,30]
[403723709,1769508688572,-210.0,0.0004295,30]
[403723710,1769508688582,-410.27,0.00042959,90]
[403723711,1769508688591,-500.0,0.00042959,120]
[403723712,1769508688600,-800.0,0.00042962,60]
[403723713,1769508688610,-500.0,0.00042986,120]
[403723714,1769508688619,-500.0,0.00043,2]
[403723715,1769508688628,-400.0,0.00043,15]
[403723716,1769508688638,-648.9117727,0.00043,120]
[403723717,1769508688648,-1314.80253359,0.00043,120]
[403723718,1769508688661,-809.23301267,0.00043,120]
[403723719,1769508688671,-200.0,0.00043,120]
[403723720,1769508688682,-200.0,0.00043,120]
[403723721,1769508688691,-200.0,0.00043,120]
[403723722,1769508688703,-200.0,0.00043,120]
[403723723,1769508688717,-200.0,0.00043,120]
[403723724,1769508688727,-200.0,0.00043,120]
[403723725,1769508688738,-200.0,0.00043,60]
[403723726,1769508688749,-200.0,0.00043,60]
[403723727,1769508688759,-200.0,0.00043,60]
[403723728,1769508688770,-200.0,0.00043,60]
[403723729,1769508688780,-200.0,0.00043,60]
[403723730,1769508688791,-200.0,0.00043,60]
[403723731,1769508688800,-200.0,0.00043,60]
[403723732,1769508688811,-200.0,0.00043,60]
[403723733,1769508688823,-200.0,0.00043,60]
[403723734,1769508688833,-200.0,0.00043,60]
[403723735,1769508688844,-200.0,0.00043,60]
[403723736,1769508688855,-200.0,0.00043,60]
[403723737,1769508688865,-200.0,0.00043,60]
[403723738,1769508688874,-200.0,0.00043,60]
[403723739,1769508688885,-200.0,0.00043,60]
[403723740,1769508688895,-200.0,0.00043,60]
[403723741,1769508688905,-200.0,0.00043,120]
[403723742,1769508688915,-16450.48894668,0.00043,120]
[403723743,1769508688926,-1000.0,0.00043,120]
[403723744,1769508688936,-1000.0,0.00043,120]
[403723745,1769508688946,-1000.0,0.00043,120]
[403723746,1769508688956,-1000.0,0.00043,120]
[403723747,1769508688965,-1000.0,0.00043,120]
[403723748,1769508688975,-738.5859659,0.00043,120]
[403723749,1769508688985,-219.69540187,0.00043,120]
[403723750,1769508688995,-500.0,0.00043,120]
[403723751,1769508689005,-216.0,0.00043,30]
[403723752,1769508689015,-505.0,0.00043,120]
[403723753,1769508689025,-500.0,0.00043,45]
[403723754,1769508689045,-100000.0,0.00043,7]
[403723755,1769508689066,-180.0,0.00043,3]
[403723756,1769508689077,-1000.0,0.00043,120]
[403723757,1769508689087,-150.0,0.00043,120]
[403723758,1769508689097,-874.85366476,0.00043,120]
[403723759,1769508689107,-2317.30948431,0.00043,120]
[403723760,1769508689117,-150.0,0.00043,120]
[403723761,1769508689126,-100000.0,0.00043,7]
[403723762,1769508689136,-253.0,0.00043,41]
[403723763,1769508689146,-220.0,0.00043,120]
[403723764,1769508689156,-600.0,0.00043,120]
[403723765,1769508689167,-600.0,0.00043,120]
[403723766,1769508689181,-608.76223796,0.00043,120]
[403723767,1769508689192,-344.08892798,0.00043,120]
[403723768,1769508689209,-500.0,0.00043,120]
[403723769,1769508689233,-150.0,0.00043001,120]
[403723770,1769508689250,-150.0,0.00043001,120]
[403723771,1769508689270,-1000.0,0.00043014,30]
[403723772,1769508689292,-205.57,0.00043014,120]
[403723773,1769508689311,-500.0,0.00043014,120]
[403723774,1769508689322,-1090.58104198,0.00043032,10]
[403723775,1769508689335,-531.06541765,0.00043069,120]
[403723776,1769508689349,-231.32461831,0.000431,120]
[403723777,1769508689360,-182.65494675,0.000431,120]
[403723778,1769508689373,-731.9024,0.000431,120]
[403723779,1769508689384,-173.67040214,0.000431,120]
[403723780,1769508689398,-197.55225456,0.000431,120]
[403723781,1769508689411,-226.39160758,0.000431,120]
[403723782,1769508689422,-150.0,0.000431,120]
[403723783,1769508689433,-1232.58,0.000431,90]
[403723784,1769508689444,-2052.90896617,0.000431,120]
[403723785,1769508689458,-16397.8795,0.00043122,30]
[403723786,1769508689470,-171.43455413,0.00043123,120]
[403723787,1769508689484,-1577.9074076,0.0004313,30]
[403723788,1769508689496,-153.0,0.000432,120]
[403723789,1769508689507,-150.0,0.000432,120]
[403723790,1769508689516,-523.8666,0.0004322,30]
[403723791,1769508689525,-691.59834515,0.00043232,10]
[403723792,1769508689536,-169.23,0.00043232,120]
[403723793,1769508689547,-165.94,0.00043232,120]
[403723794,1769508689556,-157.27,0.00043232,120]
[403723795,1769508689566,-800.0,0.0004324,13]
[403723796,1769508689576,-800.0,0.0004324,13]
[403723797,1769508689585,-800.0,0.0004324,13]
[403723798,1769508689595,-800.0,0.0004324,13]
[403723799,1769508689605,-800.0,0.0004324,13]
[403723800,1769508689614,-800.0,0.0004324,13]
[403723801,1769508689624,-800.0,0.0004324,13]
[403723802,1769508689634,-800.0,0.0004324,13]
[403723803,1769508689645,-800.0,0.0004324,13]
[403723804,1769508689655,-800.0,0.0004324,13]
[403723805,1769508689665,-800.0,0.0004324,13]
[403723806,1769508689676,-800.0,0.0004324,13]
[403723807,1769508689686,-800.0,0.0004324,13]
[403723808,1769508689699,-800.0,0.0004324,13]
[403723809,1769508689710,-800.0,0.0004324,13]
[403723810,1769508689721,-800.0,0.0004324,13]
[403723811,1769508689733,-800.0,0.0004324,13]
[403723812,1769508689745,-800.0,0.0004324,13]
[403723813,1769508689755,-800.0,0.0004324,13]
[403723814,1769508689764,-800.0,0.0004324,13]
[403723815,1769508689774,-800.0,0.0004324,13]
[403723816,1769508689785,-800.0,0.0004324,13]
[403723817,1769508689796,-800.0,0.0004324,13]
[403723818,1769508689805,-800.0,0.0004324,13]
[403723819,1769508689815,-800.0,0.0004324,13]
[403723820,1769508689826,-800.0,0.0004324,13]
[403723821,1769508689837,-800.0,0.0004324,13]
[403723822,1769508689847,-800.0,0.0004324,13]
[403723823,1769508689856,-800.0,0.0004324,13]
[403723824,1769508689866,-800.0,0.0004324,13]
[403723825,1769508689876,-800.0,0.0004324,13]
[403723826,1769508689885,-800.0,0.0004324,13]
[403723827,1769508689896,-800.0,0.0004324,13]
[403723828,1769508689906,-800.0,0.0004324,13]
[403723829,1769508689917,-800.0,0.0004324,13]
[403723830,1769508689927,-800.0,0.0004324,13]
[403723831,1769508689937,-800.0,0.0004324,13]
[403723832,1769508689947,-800.0,0.0004324,13]
[403723833,1769508689957,-200.0,0.0004324,2]
[403723834,1769508689968,-200.0,0.0004324,2]
[403723835,1769508689980,-200.0,0.0004324,2]
[403723836,1769508689991,-200.0,0.0004324,2]
[403723837,1769508690003,-200.0,0.0004324,2]
[403723838,1769508690014,-200.0,0.0004324,2]
[403723839,1769508690025,-200.0,0.0004324,2]
[403723840,1769508690035,-200.0,0.0004324,2]
[403723841,1769508690045,-200.0,0.0004324,2]
[403723842,1769508690055,-800.0,0.0004324,13]
[403723843,1769508690065,-800.0,0.0004324,13]
[403723844,1769508690075,-800.0,0.0004324,13]
[403723845,1769508690086,-800.0,0.0004324,13]
[403723846,1769508690096,-800.0,0.0004324,13]
[403723847,1769508690105,-800.0,0.0004324,13]
[403723848,1769508690115,-800.0,0.0004324,13]
[403723849,1769508690125,-800.0,0.0004324,13]
[403723850,1769508690135,-800.0,0.0004324,13]
[403723851,1769508690145,-800.0,0.0004324,13]
[403723852,1769508690155,-800.0,0.0004324,13]
[403723853,1769508690165,-800.0,0.0004324,13]
[403723854,1769508690175,-800.0,0.0004324,13]
[403723855,1769508690187,-800.0,0.0004324,13]
[403723856,1769508690197,-800.0,0.0004324,13]
[403723857,1769508690207,-800.0,0.0004324,13]
[403723858,1769508690217,-800.0,0.0004324,13]
[403723859,1769508690228,-800.0,0.0004324,13]
[403723860,1769508690238,-800.0,0.0004324,13]
[403723861,1769508690248,-800.0,0.0004324,13]
[403723862,1769508690260,-800.0,0.0004324,13]
[403723863,1769508690270,-200.0,0.0004324,2]
[403723864,1769508690280,-200.0,0.0004324,2]
[403723865,1769508690290,-200.0,0.0004324,2]
[403723866,1769508690300,-200.0,0.0004324,2]
[403723867,1769508690310,-200.0,0.0004324,2]
[403723868,1769508690320,-200.0,0.0004324,2]
[403723869,1769508690329,-200.0,0.0004324,2]
[403723870,1769508690340,-200.0,0.0004324,2]
[403723871,1769508690350,-200.0,0.0004324,2]
[403723872,1769508690360,-200.0,0.0004324,2]
[403723873,1769508690370,-200.0,0.0004324,2]
[403723874,1769508690382,-200.0,0.0004324,2]
[403723875,1769508690391,-200.0,0.0004324,2]
[403723876,1769508690403,-200.0,0.0004324,2]
[403723877,1769508690415,-200.0,0.0004324,2]
[403723878,1769508690427,-200.0,0.0004324,2]
[403723879,1769508690438,-200.0,0.0004324,2]
[403723880,1769508690449,-200.0,0.0004324,2]
[403723881,1769508690460,-200.0,0.0004324,2]
[403723882,1769508690470,-200.0,0.0004324,2]
[403723883,1769508690480,-200.0,0.0004324,2]
[403723884,1769508690490,-200.0,0.0004324,2]
[403723885,1769508690500,-500.0,0.0004324,120]
[403723886,1769508690510,-800.0,0.0004324,13]
[403723887,1769508690520,-800.0,0.0004324,13]
[403723888,1769508690531,-200.0,0.0004324,2]
[403723889,1769508690541,-200.0,0.0004324,2]
[403723890,1769508690551,-200.0,0.0004324,2]
[403723891,1769508690561,-800.0,0.0004324,13]
[403723892,1769508690571,-800.0,0.0004324,13]
[403723893,1769508690581,-800.0,0.0004324,13]
[403723894,1769508690592,-625.0,0.0004324,120]
[403723895,1769508690602,-800.0,0.0004324,13]
[403723896,1769508690612,-317.0,0.0004324,13]
[403723897,1769508690622,-200.0,0.0004324,2]
[403723898,1769508690632,-200.0,0.0004324,2]
[403723899,1769508690641,-191.0,0.0004324,2]
[403723900,1769508690651,-800.0,0.0004324,13]
[403723901,1769508690661,-800.0,0.0004324,13]
[403723902,1769508690671,-800.0,0.0004324,13]
[403723903,1769508690681,-800.0,0.0004324,13]
[403723904,1769508690691,-800.0,0.0004324,13]
[403723905,1769508690701,-800.0,0.0004324,13]
[403723906,1769508690712,-800.0,0.0004324,13]
[403723907,1769508690722,-800.0,0.0004324,13]
[403723908,1769508690732,-800.0,0.0004324,13]
[403723909,1769508690742,-640.0,0.0004324,13]
[403723910,1769508690752,-800.0,0.0004324,13]
[403723911,1769508690762,-805.0,0.0004324,13]
[403723912,1769508690773,-800.0,0.0004324,13]
[403723913,1769508690782,-800.0,0.0004324,13]
[403723914,1769508690793,-800.0,0.0004324,13]
[403723915,1769508690803,-800.0,0.0004324,13]
[403723916,1769508690813,-800.0,0.0004324,13]
[403723917,1769508690824,-800.0,0.0004324,13]